fUSD/lending_fUSD_20240725
["ID","MTS","AMOUNT","RATE_DAILY","PERIOD"]
[333183305,1721926234438,-3378.78,0.00010999,2]
[333183306,1721926234448,-3378.78,0.00010999,2]
[333183307,1721926234458,-3378.82308929,0.00010999,2]
[333183308,1721926234468,-561.33000053,0.00010999,2]
[333183309,1721926234482,-500.0,0.00010999,2]
[333183310,1721926234492,-500.0,0.00010999,2]
[333183311,1721926234506,-500.0,0.00010999,2]
[333183312,1721926234516,-500.0,0.00010999,2]
[333183313,1721926234525,-500.0,0.00010999,2]
[333183314,1721926234535,-500.0,0.00010999,2]
[333183315,1721926234545,-500.0,0.00010999,2]
[333183316,1721926234556,-500.0,0.00010999,2]
[333183317,1721926234566,-500.0,0.00010999,2]
[333183318,1721926234576,-500.0,0.00010999,2]
[333183319,1721926234586,-500.0,0.00010999,2]
[333183320,1721926234596,-168.85321894,0.00010999,2]
[333183321,1721926234605,-500.0,0.00010999,2]
[333183322,1721926234615,-500.0,0.00010999,2]
[333183323,1721926234625,-175.77028953,0.00010999,2]
[333183324,1721926234634,-500.0,0.00010999,2]
[333183325,1721926234644,-500.0,0.00010999,2]
[333183326,1721926234654,-500.0,0.00010999,2]
[333183327,1721926234664,-577.21,0.00010999,2]
[333183328,1721926234674,-500.0,0.00010999,2]
[333183329,1721926234684,-500.0,0.00010999,2]
[333183330,1721926234693,-500.0,0.00010999,2]
[333183331,1721926234703,-500.0,0.00010999,2]
[333183332,1721926234713,-500.0,0.00010999,2]
[333183333,1721926234722,-500.0,0.00010999,2]
[333183334,1721926234732,-500.0,0.00010999,2]
[333183335,1721926234742,-500.0,0.00010999,2]
[333183336,1721926234754,-500.0,0.00010999,2]
[333183337,1721926234763,-319.04,0.00010999,2]
[333183338,1721926234772,-500.0,0.00010999,2]
[333183339,1721926234782,-500.0,0.00010999,2]
[333183340,1721926234792,-500.0,0.00010999,2]
[333183341,1721926234802,-607.0,0.00011,2]
[333183342,1721926234812,-175844.68637384,0.00011,2]
[333183343,1721926235299,-82982.30087,0.00011,2]
[333183344,1721926235310,-4591.446,0.00011,2]
[333183349,1721926237845,-500.0,0.00010958,2]
[333183350,1721926237855,-500.0,0.00010999,2]
[333183351,1721926237865,-155.0792198,0.00010999,2]
[333183352,1721926237879,-35.83934695,0.00010999,2]
[333183353,1721926237888,-32697.69776159,0.00011,2]
[333183474,1721926239531,-636.42,0.00011,2]
[333183493,1721926239696,-49871.13696804,0.00011,2]
[333183495,1721926239707,-745.83403878,0.00011,2]
[333183497,1721926239718,-489.87320722,0.00011,2]
[333183499,1721926239729,-557.83209693,0.00011,2]
[333183502,1721926239741,-460.56973873,0.00011,2]
[333183504,1721926239753,-12317.93100775,0.00011,2]
[333183506,1721926239771,-496.786,0.00011,2]
[333183508,1721926239781,-3254.45282,0.00011,2]
[333183512,1721926239809,-352.89106032,0.00011,2]
[333183514,1721926239821,-5782.29098957,0.00011,2]
[333183516,1721926239833,-492.55741441,0.00011,2]
[333183521,1721926239867,-1032.75,0.00011,2]
[333183816,1721926242772,-500.0,0.00010958,2]
[333183818,1721926242782,-186.33519384,0.00010959,2]
[333183820,1721926242793,-116.70480616,0.00010959,2]
[333183822,1721926242807,-500.0,0.00010999,2]
[333183824,1721926242817,-500.0,0.00010999,2]
[333183826,1721926242826,-544.0,0.00010999,2]
[333183828,1721926242836,-1604.30580308,0.00011,2]
[333183830,1721926242848,-443.2567971,0.00011,2]
[333183833,1721926242867,-305.67881732,0.00011,2]
[333184024,1721926246339,-912.34615092,0.00011,2]
[333184025,1721926246350,-856.20926424,0.00011,2]
[333184026,1721926246361,-2448.9903007,0.00011,2]
[333184027,1721926246371,-3694.55916163,0.00011,2]
[333184028,1721926246382,-747.40697802,0.00011,2]
[333184029,1721926246393,-505.14,0.00011,2]
[333184030,1721926246404,-292.064,0.00011,2]
[333184031,1721926246415,-3370.9785,0.00011,2]
[333184032,1721926246426,-1638.75847345,0.00011,2]
[333184107,1721926247521,-873.02264543,0.00011,2]
[333184109,1721926247532,-2188.21284395,0.00011,2]
[333184398,1721926339057,500.0,6.061e-05,2]
[333184399,1721926339416,500.0,6.061e-05,2]
[333184400,1721926339918,500.0,6.061e-05,2]
[333184401,1721926340128,500.0,6.061e-05,2]
[333184402,1721926340491,500.0,6.061e-05,2]
[333184403,1721926341057,500.0,6.061e-05,2]
[333184404,1721926341221,500.0,6.061e-05,2]
[333184405,1721926341563,500.0,6.061e-05,2]
[333184406,1721926341929,649.0,6.061e-05,2]
[333184407,1721926369746,436.63259212,6.061e-05,2]
[333184408,1721926379308,143.29169662,6.061e-05,2]
[333184409,1721926379329,11.70830338,6.061e-05,2]
[333184410,1721926380302,155.17260083,6.061e-05,2]
[333184411,1721926397756,155.0,6.061e-05,2]
[333184412,1721926400676,158.80623493,6.061e-05,2]
[333184413,1721926403701,9519.31286086,6.061e-05,2]
[333184414,1721926403720,10000.0,6.061e-05,2]
[333184415,1721926403741,5251.7628504,6.061e-05,2]
[333184416,1721926409621,4748.2371496,6.061e-05,2]
[333184417,1721926409642,10000.0,6.061e-05,2]
[333184418,1721926409665,19722.5319352,6.061e-05,2]
[333184419,1721926410634,17983.22820975,6.061e-05,2]
[333184420,1721926418690,10000.0,6.061e-05,2]
[333184421,1721926418712,14771.07571126,6.061e-05,2]
[333184422,1721926437605,7569.30838559,6.061e-05,2]
[333184423,1721926529699,2430.69161441,6.061e-05,2]
[333184424,1721926529721,10000.0,6.061e-05,2]
[333184425,1721926529742,10000.0,6.061e-05,2]
[333184426,1721926529762,2340.38409685,6.061e-05,2]
[333184427,1721926550101,715.90115688,6.061e-05,2]
[333184428,1721926554649,6943.71474627,6.061e-05,2]
[333184429,1721926554673,3056.28525373,6.061e-05,2]
[333184431,1721926619764,178.67810387,6.061e-05,2]
[333184432,1721926631687,6765.0366424,6.061e-05,2]
[333184433,1721926631714,50120.1133576,6.061e-05,2]
[333184434,1721926636713,23442.08328324,6.061e-05,2]
[333184435,1721926652150,500.0,6.061e-05,2]
[333184436,1721926652535,500.0,6.061e-05,2]
[333184437,1721926652874,500.0,6.061e-05,2]
[333184438,1721926653246,500.0,6.061e-05,2]
[333184439,1721926653540,500.0,6.061e-05,2]
[333184440,1721926653912,500.0,6.061e-05,2]
[333184441,1721926654225,500.0,6.061e-05,2]
[333184442,1721926655144,500.0,6.061e-05,2]
[333184443,1721926655498,500.0,6.061e-05,2]
[333184444,1721926655838,500.0,6.061e-05,2]
[333184445,1721926656194,500.0,6.061e-05,2]
[333184446,1721926656579,500.0,6.061e-05,2]
[333184447,1721926656935,500.0,6.061e-05,2]
[333184448,1721926657300,500.0,6.061e-05,2]
[333184449,1721926657675,500.0,6.061e-05,2]
[333184450,1721926658799,500.0,6.061e-05,2]
[333184451,1721926658949,500.0,6.061e-05,2]
[333184452,1721926659364,500.0,6.061e-05,2]
[333184453,1721926659752,500.0,6.061e-05,2]
[333184454,1721926660686,500.0,6.061e-05,2]
[333184455,1721926661129,500.0,6.061e-05,2]
[333184456,1721926661364,500.0,6.061e-05,2]
[333184457,1721926661708,500.0,6.061e-05,2]
[333184458,1721926662048,500.0,6.061e-05,2]
[333184459,1721926662390,500.0,6.061e-05,2]
[333184460,1721926662757,500.0,6.061e-05,2]
[333184461,1721926663397,500.0,6.061e-05,2]
[333184462,1721926663783,500.0,6.061e-05,2]
[333184463,1721926664142,500.0,6.061e-05,2]
[333184464,1721926664466,500.0,6.061e-05,2]
[333184465,1721926664928,500.0,6.061e-05,2]
[333184466,1721926665268,500.0,6.061e-05,2]
[333184467,1721926666285,500.0,6.061e-05,2]
[333184468,1721926666639,500.0,6.061e-05,2]
[333184469,1721926667569,500.0,6.061e-05,2]
[333184470,1721926668009,500.0,6.061e-05,2]
[333184471,1721926669950,500.0,6.061e-05,2]
[333184472,1721926670305,500.0,6.061e-05,2]
[333184473,1721926670676,500.0,6.061e-05,2]
[333184474,1721926671046,500.0,6.061e-05,2]
[333184475,1721926671528,500.0,6.061e-05,2]
[333184476,1721926671686,500.0,6.061e-05,2]
[333184477,1721926672070,500.0,6.061e-05,2]
[333184478,1721926672454,500.0,6.061e-05,2]
[333184479,1721926672842,500.0,6.061e-05,2]
[333184480,1721926673814,500.0,6.061e-05,2]
[333184481,1721926674187,500.0,6.061e-05,2]
[333184482,1721926674505,500.0,6.061e-05,2]
[333184483,1721926674827,500.0,6.061e-05,2]
[333184484,1721926675361,500.0,6.061e-05,2]
[333184485,1721926675534,500.0,6.061e-05,2]
[333184486,1721926675876,500.0,6.061e-05,2]
[333184487,1721926676304,500.0,6.061e-05,2]
[333184488,1721926676662,500.0,6.061e-05,2]
[333184489,1721926676998,500.0,6.061e-05,2]
[333184490,1721926677402,500.0,6.061e-05,2]
[333184491,1721926677729,500.0,6.061e-05,2]
[333184492,1721926678085,500.0,6.061e-05,2]
[333184493,1721926678419,500.0,6.061e-05,2]
[333184494,1721926678802,500.0,6.061e-05,2]
[333184495,1721926679159,730.0,6.061e-05,2]
[333184531,1721927431734,-477.01094481,7.347e-05,2]
[333184532,1721927431744,-191.59,7.835e-05,2]
[333184533,1721927431754,-159.51806429,8.219e-05,2]
[333184534,1721927431764,-169.11,8.219e-05,2]
[333184535,1721927431773,-1966.98,8.219e-05,2]
[333184536,1721927431783,-169.11,9.398e-05,2]
[333184537,1721927431793,-300.0,9.556e-05,2]
[333184538,1721927431803,-12490.2927,9.557e-05,2]
[333184539,1721927431812,-934.54460572,9.69e-05,2]
[333184540,1721927431822,-2947.3771,9.719e-05,2]
[333184541,1721927431834,-1000.0,9.789e-05,2]
[333184542,1721927431843,-169.25,9.839e-05,2]
[333184543,1721927431852,-85.58491242,9.839e-05,2]
[333184544,1721927431867,-65.40508758,9.839e-05,2]
[333184545,1721927431877,-1974.66,9.873e-05,2]
[333184546,1721927431887,-720.0,0.0001,2]
[333184547,1721927431896,-13941.99280037,0.0001,2]
[333184548,1721927431905,-4633.26808937,0.00010147,2]
[333184549,1721927431919,-330.05428612,0.00010147,2]
[333184550,1721927431932,-2188.8407,0.00010147,2]
[333184551,1721927431948,-1264.91692451,0.00010147,2]
[333184552,1721927431960,-27669.43,0.00010147,2]
[333184553,1721927431970,-1966.98,0.00010464,2]
[333184554,1721927431981,-169.11,0.00010577,2]
[333184555,1721927431990,-300.94,0.00010578,2]
[333184556,1721927431999,-154.48,0.00010578,2]
[333184557,1721927432010,-152.02,0.00010678,2]
[333184558,1721927432021,-425.58,0.00010678,2]
[333184559,1721927432031,-1058.72,0.00010678,2]
[333184560,1721927432041,-709.7,0.00010678,2]
[333184561,1721927432050,-425.58,0.00010678,2]
[333184562,1721927432060,-425.58,0.00010678,2]
[333184563,1721927432070,-150.0,0.00010705,2]
[333184564,1721927432080,-150.0,0.00010709,2]
[333184565,1721927432090,-150.0,0.0001071,2]
[333184566,1721927432102,-150.0,0.0001071,2]
[333184567,1721927432111,-150.0,0.00010712,2]
[333184568,1721927432121,-150.0,0.00010715,2]
[333184569,1721927432131,-150.0,0.0001072,2]
[333184570,1721927432141,-150.0,0.00010723,2]
[333184571,1721927432150,-150.0,0.00010724,2]
[333184572,1721927432160,-150.0,0.00010729,2]
[333184573,1721927432170,-150.0,0.00010729,2]
[333184574,1721927432180,-150.0,0.0001073,2]
[333184576,1721927432189,-150.0,0.00010732,2]
[333184578,1721927432199,-150.0,0.00010733,2]
[333184580,1721927432209,-150.0,0.00010735,2]
[333184582,1721927432219,-150.0,0.00010737,2]
[333184584,1721927432231,-150.0,0.0001074,2]
[333184586,1721927432241,-150.0,0.00010743,2]
[333184588,1721927432250,-150.0,0.00010746,2]
[333184590,1721927432263,-150.0,0.00010748,2]
[333184592,1721927432272,-150.0,0.00010748,2]
[333184594,1721927432283,-150.0,0.00010749,2]
[333184596,1721927432292,-150.0,0.0001075,2]
[333184598,1721927432301,-150.0,0.00010754,2]
[333184599,1721927432310,-150.0,0.00010756,2]
[333184602,1721927432321,-150.0,0.00010758,2]
[333184604,1721927432330,-150.0,0.00010758,2]
[333184606,1721927432340,-150.0,0.00010758,2]
[333184607,1721927432349,-150.0,0.00010758,2]
[333184609,1721927432360,-150.0,0.00010761,2]
[333184611,1721927432369,-150.0,0.00010763,2]
[333184613,1721927432379,-150.0,0.00010766,2]
[333184615,1721927432389,-150.0,0.00010767,2]
[333184617,1721927432399,-150.0,0.00010768,2]
[333184619,1721927432408,-150.0,0.00010769,2]
[333184621,1721927432417,-150.0,0.0001077,2]
[333184623,1721927432427,-150.0,0.00010773,2]
[333184625,1721927432436,-150.0,0.00010773,2]
[333184627,1721927432446,-150.0,0.00010774,2]
[333184629,1721927432456,-150.0,0.00010775,2]
[333184631,1721927432465,-150.0,0.00010775,2]
[333184633,1721927432474,-150.0,0.00010776,2]
[333184635,1721927432485,-150.0,0.00010778,2]
[333184637,1721927432495,-150.0,0.0001078,2]
[333184639,1721927432505,-150.0,0.00010785,2]
[333184640,1721927432514,-150.0,0.00010786,2]
[333184641,1721927432523,-150.0,0.0001079,2]
[333184642,1721927432532,-150.0,0.00010796,2]
[333184643,1721927432542,-150.0,0.00010799,2]
[333184644,1721927432552,-150.0,0.00010799,2]
[333184645,1721927432561,-150.0,0.00010804,2]
[333184646,1721927432570,-150.0,0.00010806,2]
[333184647,1721927432580,-150.0,0.00010807,2]
[333184648,1721927432589,-150.0,0.00010809,2]
[333184649,1721927432599,-150.0,0.00010813,2]
[333184650,1721927432608,-150.0,0.00010815,2]
[333184651,1721927432616,-150.0,0.00010816,2]
[333184652,1721927432625,-150.0,0.00010816,2]
[333184653,1721927432635,-150.0,0.00010828,2]
[333184654,1721927432644,-150.0,0.00010833,2]
[333184655,1721927432653,-150.0,0.00010839,2]
[333184656,1721927432663,-150.0,0.00010842,2]
[333184657,1721927432672,-150.0,0.00010842,2]
[333184658,1721927432681,-150.0,0.00010844,2]
[333184659,1721927432691,-150.0,0.00010844,2]
[333184660,1721927432700,-150.0,0.00010844,2]
[333184661,1721927432709,-150.0,0.00010855,2]
[333184662,1721927432719,-259.4496,0.00010858,2]
[333184663,1721927432731,-150.0,0.00010859,2]
[333184664,1721927432740,-150.0,0.00010862,2]
[333184665,1721927432750,-150.0,0.00010874,2]
[333184666,1721927432759,-150.0,0.00010882,2]
[333184667,1721927432771,-150.0,0.00010885,2]
[333184668,1721927432781,-150.0,0.00010891,2]
[333184669,1721927432791,-150.0,0.00010891,2]
[333184670,1721927432801,-150.0,0.00010893,2]
[333184671,1721927432810,-150.0,0.00010893,2]
[333184672,1721927432820,-150.0,0.00010894,2]
[333184673,1721927432830,-7500.0,0.00010899,2]
[333184674,1721927432843,-2122.87110897,0.00010899,2]
[333184675,1721927432852,-2122.8711089,0.00010899,2]
[333184676,1721927432862,-2122.8711089,0.00010899,2]
[333184677,1721927432871,-2122.8711089,0.00010899,2]
[333184678,1721927432882,-2122.8711089,0.00010899,2]
[333184679,1721927432891,-472.35086059,0.00010899,2]
[333184695,1721927437658,-150.0,0.0001069,2]
[333184696,1721927437668,-171.95124612,0.00010698,2]
[333184697,1721927437677,-150.0,0.00010721,2]
[333184698,1721927437686,-150.0,0.00010729,2]
[333184699,1721927437696,-31.72776649,0.00010729,2]
[333184700,1721927437719,-118.27223351,0.00010729,2]
[333184701,1721927437728,-150.0,0.0001073,2]
[333184702,1721927437739,-150.0,0.00010734,2]
[333184703,1721927437748,-150.0,0.0001074,2]
[333184704,1721927437757,-150.0,0.00010741,2]
[333184705,1721927437767,-150.0,0.00010742,2]
[333184706,1721927437776,-150.0,0.00010744,2]
[333184707,1721927437786,-150.0,0.00010765,2]
[333184708,1721927437795,-150.0,0.00010765,2]
[333184709,1721927437805,-150.0,0.00010773,2]
[333184710,1721927437816,-150.0,0.00010777,2]
[333184711,1721927437826,-150.0,0.00010782,2]
[333184712,1721927437840,-150.0,0.00010787,2]
[333184713,1721927437850,-150.0,0.00010791,2]
[333184714,1721927437860,-150.0,0.00010814,2]
[333184715,1721927437869,-150.0,0.0001082,2]
[333184716,1721927437880,-150.0,0.00010827,2]
[333184717,1721927437890,-150.0,0.00010834,2]
[333184718,1721927437900,-150.0,0.00010837,2]
[333184719,1721927437911,-150.0,0.00010848,2]
[333184720,1721927437922,-150.0,0.00010856,2]
[333184721,1721927437932,-150.0,0.00010859,2]
[333184722,1721927437942,-150.0,0.00010877,2]
[333184723,1721927437953,-150.0,0.00010879,2]
[333184724,1721927437962,-150.0,0.00010886,2]
[333184725,1721927437972,-150.0,0.00010888,2]
[333184726,1721927437983,-150.0,0.00010893,2]
[333184727,1721927437994,-1650.52024831,0.00010899,2]
[333184728,1721927438004,-2122.8711089,0.00010899,2]
[333184729,1721927438014,-2122.8711089,0.00010899,2]
[333184730,1721927438024,-1574.5301986,0.00010899,2]
[333184731,1721927438046,-258.97374669,0.00010899,2]
[333184732,1721927438058,-289.36716361,0.00010899,2]
[333184733,1721927438069,-1364.6264,0.000109,2]
[333184734,1721927438078,-1081.5455234,0.000109,2]
[333184735,1721927438091,-816.07128584,0.000109,2]
[333184736,1721927438103,-102.38319076,0.000109,2]
[333184737,1721927438113,-174.46635943,0.000109,2]
[333184738,1721927438122,-160.32482544,0.000109,2]
[333184739,1721927438132,-2122.8711089,0.000109,2]
[333184740,1721927438141,-4861.87269321,0.000109,2]
[333184741,1721927438151,-150.0,0.00010902,2]
[333184743,1721927438160,-150.0,0.00010909,2]
[333184744,1721927438169,-500.0,0.00010912,2]
[333184745,1721927438178,-150.0,0.00010912,2]
[333184746,1721927438188,-150.0,0.00010913,2]
[333184747,1721927438198,-150.0,0.00010914,2]
[333184748,1721927438207,-150.0,0.00010917,2]
[333184749,1721927438216,-150.0,0.00010918,2]
[333184751,1721927438226,-150.0,0.00010922,2]
[333184753,1721927438236,-150.0,0.00010923,2]
[333184754,1721927438245,-150.0,0.00010923,2]
[333184755,1721927438255,-150.0,0.00010923,2]
[333184756,1721927438264,-150.0,0.00010924,2]
[333184757,1721927438274,-150.0,0.00010924,2]
[333184759,1721927438283,-150.0,0.00010928,2]
[333184761,1721927438293,-150.0,0.00010929,2]
[333184763,1721927438303,-150.0,0.0001093,2]
[333184765,1721927438312,-150.0,0.0001093,2]
[333184767,1721927438322,-150.0,0.00010932,2]
[333184769,1721927438332,-150.0,0.00010933,2]
[333184771,1721927438342,-150.0,0.00010938,2]
[333184773,1721927438351,-150.0,0.00010941,2]
[333184775,1721927438362,-150.0,0.00010942,2]
[333184776,1721927438372,-150.0,0.00010943,2]
[333184778,1721927438381,-295.82708521,0.00010945,2]
[333184780,1721927438391,-150.0,0.00010945,2]
[333184782,1721927438400,-150.0,0.00010946,2]
[333184784,1721927438410,-150.0,0.00010947,2]
[333184786,1721927438419,-150.0,0.00010954,2]
[333184788,1721927438429,-150.0,0.00010954,2]
[333184790,1721927438438,-150.0,0.00010955,2]
[333184792,1721927438448,-150.0,0.00010955,2]
[333184794,1721927438457,-150.0,0.00010955,2]
[333184796,1721927438467,-150.0,0.00010956,2]
[333184798,1721927438476,-500.0,0.00010958,2]
[333184800,1721927438487,-305.11673738,0.00010958,2]
[333184802,1721927438496,-504.03999298,0.00010958,2]
[333184804,1721927438505,-173.098007,0.00010958,2]
[333184806,1721927438517,-326.901993,0.00010958,2]
[333184808,1721927438527,-182.21296221,0.00010958,2]
[333184810,1721927438543,-317.78703779,0.00010958,2]
[333184812,1721927438552,-295.42296221,0.00010958,2]
[333184814,1721927438563,-204.57703779,0.00010958,2]
[333184816,1721927438573,-500.0,0.00010958,2]
[333184818,1721927438583,-369.97290984,0.00010958,2]
[333184820,1721927438594,-130.02709016,0.00010958,2]
[333184821,1721927438603,-500.0,0.00010958,2]
[333184823,1721927438612,-500.0,0.00010958,2]
[333184825,1721927438621,-500.0,0.00010958,2]
[333184827,1721927438631,-500.0,0.00010958,2]
[333184829,1721927438640,-342.89755745,0.00010958,2]
[333184831,1721927438651,-157.10244255,0.00010958,2]
[333184833,1721927438660,-500.0,0.00010958,2]
[333184835,1721927438670,-231.44850758,0.00010958,2]
[333184837,1721927438681,-268.55149242,0.00010958,2]
[333184839,1721927438691,-500.0,0.00010958,2]
[333184841,1721927438700,-500.0,0.00010958,2]
[333184843,1721927438709,-500.0,0.00010958,2]
[333184845,1721927438718,-500.0,0.00010958,2]
[333184847,1721927438728,-500.0,0.00010958,2]
[333184849,1721927438738,-500.0,0.00010958,2]
[333184850,1721927438747,-500.0,0.00010958,2]
[333184852,1721927438756,-500.0,0.00010958,2]
[333184854,1721927438769,-500.0,0.00010958,2]
[333184856,1721927438778,-500.0,0.00010958,2]
[333184858,1721927438787,-154.54,0.00010958,2]
[333184860,1721927438796,-500.0,0.00010958,2]
[333184862,1721927438806,-500.0,0.00010958,2]
[333184864,1721927438815,-500.0,0.00010958,2]
[333184866,1721927438825,-514.3,0.00010958,2]
[333184868,1721927438838,-500.0,0.00010958,2]
[333184870,1721927438848,-500.0,0.00010958,2]
[333184872,1721927438857,-520.68,0.00010958,2]
[333184874,1721927438867,-500.0,0.00010958,2]
[333184876,1721927438877,-500.0,0.00010958,2]
[333184878,1721927438887,-500.0,0.00010958,2]
[333184880,1721927438896,-500.0,0.00010958,2]
[333184882,1721927438907,-500.0,0.00010958,2]
[333184884,1721927438916,-500.0,0.00010958,2]
[333184885,1721927438926,-500.0,0.00010958,2]
[333184887,1721927438935,-551.06,0.00010958,2]
[333184889,1721927438945,-517.02,0.00010958,2]
[333184891,1721927438954,-500.0,0.00010958,2]
[333184893,1721927438963,-501.18760407,0.00010958,2]
[333184895,1721927438972,-500.0,0.00010958,2]
[333184897,1721927438982,-500.0,0.00010958,2]
[333184899,1721927438994,-500.0,0.00010958,2]
[333184900,1721927439003,-513.38,0.00010958,2]
[333184902,1721927439012,-562.49,0.00010958,2]
[333184904,1721927439021,-500.0,0.00010958,2]
[333184906,1721927439031,-500.0,0.00010958,2]
[333184908,1721927439040,-500.0,0.00010958,2]
[333184910,1721927439049,-500.0,0.00010958,2]
[333184912,1721927439059,-500.0,0.00010958,2]
[333184914,1721927439068,-500.0,0.00010958,2]
[333184915,1721927439078,-500.0,0.00010958,2]
[333184917,1721927439088,-500.0,0.00010958,2]
[333184919,1721927439097,-500.0,0.00010958,2]
[333184921,1721927439108,-500.0,0.00010958,2]
[333184923,1721927439117,-503.71785394,0.00010958,2]
[333184925,1721927439127,-150.0,0.00010958,2]
[333184927,1721927439136,-500.0,0.00010959,2]
[333184929,1721927439146,-799.19,0.00010959,2]
[333184931,1721927439156,-175.95,0.00010959,2]
[333184933,1721927439165,-250.0,0.00010959,2]
[333184935,1721927439175,-521.13,0.00010959,2]
[333184937,1721927439184,-150.0,0.00010961,2]
[333184939,1721927439193,-150.0,0.00010963,2]
[333184941,1721927439203,-150.0,0.00010969,2]
[333184943,1721927439212,-150.0,0.00010978,2]
[333184944,1721927439221,-150.0,0.00010984,2]
[333184946,1721927439231,-500.0,0.00010998,2]
[333184948,1721927439243,-321.71002941,0.00010998,2]
[333184950,1721927439253,-500.0,0.00010998,2]
[333184952,1721927439263,-500.0,0.00010998,2]
[333184954,1721927439273,-500.0,0.00010998,2]
[333184956,1721927439282,-513.51818669,0.00010998,2]
[333184958,1721927439292,-500.0,0.00010998,2]
[333184960,1721927439301,-500.0,0.00010998,2]
[333184962,1721927439310,-500.0,0.00010998,2]
[333184964,1721927439319,-500.0,0.00010998,2]
[333184966,1721927439329,-500.0,0.00010998,2]
[333184968,1721927439339,-473.99447253,0.00010998,2]
[333185020,1721927439608,-26.00552747,0.00010998,2]
[333185022,1721927439618,-500.0,0.00010998,2]
[333185024,1721927439628,-500.0,0.00010998,2]
[333185026,1721927439638,-500.0,0.00010998,2]
[333185028,1721927439647,-500.0,0.00010998,2]
[333185030,1721927439656,-500.0,0.00010998,2]
[333185032,1721927439666,-500.0,0.00010998,2]
[333185034,1721927439676,-500.0,0.00010998,2]
[333185036,1721927439686,-502.68836629,0.00010998,2]
[333185038,1721927439695,-24.03011666,0.00010998,2]
[333185041,1721927439717,-475.96988334,0.00010998,2]
[333185043,1721927439727,-500.0,0.00010998,2]
[333185045,1721927439737,-500.0,0.00010998,2]
[333185047,1721927439747,-24.0313578,0.00010998,2]
[333185049,1721927439759,-464.69727716,0.00010998,2]
[333185051,1721927439771,-11.27136504,0.00010998,2]
[333185053,1721927439781,-395.197801,0.00010998,2]
[333185055,1721927439792,-238.582199,0.00010998,2]
[333185057,1721927439803,-512.33970761,0.00010998,2]
[333185058,1721927439812,-500.0,0.00010998,2]
[333185060,1721927439822,-500.0,0.00010998,2]
[333185062,1721927439833,-187.89405982,0.00010998,2]
[333185064,1721927439847,-312.10594018,0.00010998,2]
[333185066,1721927439857,-257.68222274,0.00010998,2]
[333185097,1721927440153,-242.31777726,0.00010998,2]
[333185099,1721927440163,-500.0,0.00010998,2]
[333185101,1721927440173,-500.0,0.00010998,2]
[333185103,1721927440182,-500.0,0.00010998,2]
[333185106,1721927440192,-500.0,0.00010998,2]
[333185109,1721927440202,-500.0,0.00010998,2]
[333185111,1721927440211,-500.0,0.00010998,2]
[333185113,1721927440221,-500.0,0.00010998,2]
[333185115,1721927440230,-222.68801984,0.00010998,2]
[333185117,1721927440250,-277.31198016,0.00010998,2]
[333185119,1721927440259,-500.0,0.00010998,2]
[333185121,1721927440269,-115.09157126,0.00010998,2]
[333185124,1721927440282,-442.43842874,0.00010998,2]
[333185126,1721927440292,-317.88758314,0.00010998,2]
[333185128,1721927440303,-182.11241686,0.00010998,2]